Cogmind - Beta 12 @@@ ROGUE MODE // 2023.05.07 @ 23:24:37 Player: wchar_t Result: Destroyed by as-47321 with Assembled Rifle Performance ------------- Evolutions (0) 0 Regions Visited (2) 400 Robots Destroyed (17) 85 Value Destroyed (399) 399 Prototype IDs (0) 0 Alien Tech Used (0) 0 Bonus (0) 0 TOTAL SCORE: 884 Bonus ------- None Cogmind --------- Core Integrity 0/250 Matter 217/300 Energy 84/100 System Corruption 2% Temperature Cool (65) Movement Core (750) Ox14 Location -10/Mines Parts ------- > --- POWER (1) -------- (None) > --- PROPULSION (2) --- (None) > --- UTILITY (2) ------ High-capacity Storage Unit > --- WEAPON (2) ------- Autogun > --- INVENTORY (20) --- Ion Engine Light Nuclear Core Aluminum Leg Aluminum Leg Aluminum Leg Wheel Heat Sink Medium Storage Unit Seismic Detector Light Armor Plating Peak State ------------ > --- POWER ------------ Ion Engine > --- PROPULSION ------- Aluminum Leg Aluminum Leg > --- UTILITY ---------- Heat Sink Small Storage Unit > --- WEAPON ----------- Particle Cannon Autogun > --- INVENTORY -------- Ion Engine Light Nuclear Core Aluminum Leg Aluminum Leg Heat Sink Seismic Detector Light Armor Plating Assault Rifle [Rating: 10] Favorites ----------- Power Ion Engine Engine Ion Engine Propulsion Aluminum Leg Leg Aluminum Leg Wheel Wheel Utility Heat Sink Device Heat Sink Storage High-capacity Storage Unit Protection Light Armor Plating Weapon Particle Cannon Energy Cannon Particle Cannon Ballistic Gun Autogun Ballistic Cannon Light Cannon Build | -11 -10 -10 ------- Run | Jun Mat Min Slots Evolved . | . . . Power . | . . . Propulsion . | . . . Utility . | . . . Weapon . | . . . Parts Attached 20 | 6 9 5 Power 1 | 1 . . Engine 1 | 1 . . Core . | . . . Reactor . | . . . Propulsion 8 | 2 4 2 Treads . | . . . Leg 5 | 2 1 2 Wheel 3 | . 3 . Hover . | . . . Flight . | . . . Utility 5 | 1 3 1 Device 2 | . 2 . Storage 2 | 1 1 . Processor . | . . . Hackware . | . . . Protection 1 | . . 1 Artifact . | . . . Weapon 6 | 2 2 2 Energy Gun . | . . . Energy Cannon 1 | . 1 . Ballistic Gun 4 | 2 1 1 Ballistic Cannon 1 | . . 1 Launcher . | . . . Special Weapon . | . . . Impact Weapon . | . . . Slashing Weapon . | . . . Piercing Weapon . | . . . Special Melee Weapon . | . . . Unidentified Prototypes . | . . . Parts Lost 11 | . 1 10 Power 1 | . . 1 Propulsion 5 | . 1 4 Utility 2 | . . 2 Weapon 3 | . . 3 Highest Loss Streak 10 | . 1 10 To Critical Strikes . | . . . Average Slot Usage (%) 99 | . 99 92 Engine 13 | . 14 10 Leg 19 | . 19 3 Wheel 8 | . 8 21 Device 13 | . 13 10 Storage 14 | . 14 14 Energy Cannon 11 | . 11 10 Ballistic Gun 16 | . 16 14 Naked Turns . | . . . Heaviest Build 53 | 13 53 53 Greatest Support 20 | 20 20 20 Greatest Overweight (x) 5 | 2 5 2 Average Overweight (x) 1 | . 1 2 Largest Inventory Capacity 20 | 8 20 20 Average Capacity 16 | 7 16 20 Most Carried 16 | 2 16 15 Average Carried 9 | . 9 13 Final Capacity 20 | 8 20 20 Final Carried 15 | 2 15 10 Class Distribution -------------------- 100% | Mutant Dominant Class ---------------- Mutant | -10/Materials Mutant | -10/Mines Resources | -11 -10 -10 ----------- Run | Jun Mat Min Matter Collected 505 | 216 280 9 Remotely . | . . . Salvage Created 587 | . 570 17 Parts 39 | . 39 . Haulers Intercepted 2 | . 2 . Recyclers Shooed . | . . . Parts Field Recycled . | . . . Retrieved Matter . | . . . Parts Self-Destructed . | . . . Prevented . | . . . Kills | -11 -10 -10 ------- Run | Jun Mat Min Combat Hostiles Destroyed 14 | . 12 2 Guns 6 | . 6 . Cannons 8 | . 6 2 Classes Destroyed 6 | . 5 1 Worker 1 | . 1 . Hauler 2 | . 2 . Watcher 2 | . 2 . Swarmer 3 | . 3 . Grunt 9 | . 9 . Assembled 2 | . . 2 Best Kill Streak 3 | . 3 2 Combat Bots Only 3 | . 3 2 Max Kills in Single Turn 1 | . 1 1 Gunslinging . | . . . Exploded . | . . . Melee . | . . . Uniques/NPCs Destroyed . | . . . Combat | -11 -10 -10 -------- Run | Jun Mat Min Damage Taken 1362 | . 379 983 Core 256 | . 43 213 Absorbed by Shields . | . . . Core Remaining (%) 100 | 100 . . Volleys Fired 56 | . 46 10 Largest 2 | . 2 2 Hottest 91 | . 91 91 Shots Fired 108 | . 92 16 Gun 71 | . 64 7 Cannon 37 | . 28 9 Launcher . | . . . Special . | . . . Kinetic 76 | . 64 12 Thermal 32 | . 28 4 Explosive . | . . . Electromagnetic . | . . . Robot Hit Streak 10 | . 10 7 Robot Miss Streak 2 | . 2 1 Penetration Max . | . . . Secondary Targets . | . . . Shots Hit Robots 74 | . 61 13 Core Hits 30 | . 24 6 Critical Kills 1 | . 1 . Critical Parts Destroyed . | . . . Critical Strikes 1 | . 1 . Destroy 1 | . 1 . Melee Attacks . | . . . Impact . | . . . Slashing . | . . . Piercing . | . . . Sneak Attacks . | . . . Combat Hostiles . | . . . Follow-up Attacks . | . . . Damage Inflicted 1264 | . 992 272 Guns 598 | . 500 98 Cannons 604 | . 430 174 Explosions . | . . . Melee . | . . . Ramming 62 | . 62 . Kinetic 691 | . 500 191 Thermal 511 | . 430 81 Explosive . | . . . Electromagnetic . | . . . Impact . | . . . Slashing . | . . . Piercing . | . . . Highest Corruption 2 | . 2 2 Average Corruption 2 | . 2 2 Corruption Purged . | . . . Corruption Blocked . | . . . Effects 6 | . 5 1 Message Errors 1 | . 1 . Matter Fused 1 | . . 1 Heat Flow Errors 2 | . 2 . Energy Discharges 1 | . 1 . Data Loss (minor) 1 | . 1 . Overload Shots . | . . . Overflow Damage . | . . . Projectiles . | . . . Explosions . | . . . Melee . | . . . Knockbacks 4 | . . 4 Impact . | . . . Kinetic 3 | . . 3 Secondary 1 | . . 1 Self-Inflicted Damage 21 | . 21 . Shots . | . . . Rammed 3 | . 3 . Targets Rammed 6 | . 6 . Kicked 3 | . 3 . Crushed . | . . . Highest Temperature 184 | . 184 66 Average Temperature 38 | . 38 40 Received Heat Transfer 376 | . 183 193 Siege Activations . | . . . Robots Corrupted . | . . . Combat Hostiles . | . . . Parts Fried . | . . . Impact Corruptions . | . . . Robots Melted . | . . . Combat Hostiles . | . . . Parts Melted . | . . . Heat Transferred 925 | . 777 148 Parts Sabotaged . | . . . Parts Stolen . | . . . Parts Stripped . | . . . Power Chain Reactions . | . . . Missiles Intercepted . | . . . Alert | -11 -10 -10 ------- Run | Jun Mat Min Peak Influence 140 | . 140 31 Initial 16 | . . 16 Average 46 | . 49 18 Maximum Alert Level . | . . . Low Security (%) 100 | 100 100 100 Level 1 . | . . . Level 2 . | . . . Level 3 . | . . . Level 4 . | . . . Level 5 . | . . . High Security . | . . . Max Security . | . . . Squads Dispatched 2 | . 2 . Investigation . | . . . Extermination . | . . . Reinforcement 2 | . 2 . Assault . | . . . Garrison . | . . . Intercept . | . . . Searches Triggered . | . . . Construction Impeded . | . . . Haulers Reinforced . | . . . Active Scanning Responses . | . . . Cargo Convoy Interrupts . | . . . Stealth | -11 -10 -10 --------- Run | Jun Mat Min Distress Signals 1 | . 1 . Communications Jammed . | . . . Distress Signals . | . . . Times Spotted 38 | . 20 18 Peak Tracking Total 17 | . 3 17 Tactical Retreats 2 | . 1 1 Traps | -11 -10 -10 ------- Run | Jun Mat Min Traps Triggered 2 | . 2 . Indirectly . | . . . Trap Hack Attempts . | . . . Triggered . | . . . Disarmed . | . . . Reprogrammed . | . . . Reused . | . . . Traps Extracted . | . . . Installed . | . . . Triggered . | . . . Machines | -11 -10 -10 ---------- Run | Jun Mat Min Machines Disabled . | . . . Max in Single Turn . | . . . Machines Repaired . | . . . Machines Sabotaged . | . . . Overloaded Fab Kills . | . . . Hacking | -11 -10 -10 --------- Run | Jun Mat Min Machines Accessed 2 | . 2 . Terminals 2 | . 2 . Fabricators . | . . . Repair Stations . | . . . Recycling Units . | . . . Scanalyzers . | . . . Garrison Access . | . . . Total Hacks 7 | . 7 . Successful 2 | . 2 . Failed 5 | . 5 . Catastrophic 1 | . 1 . Database Lockouts . | . . . Manual . | . . . Terminals 7 | . 7 . Fabricators . | . . . Repair Stations . | . . . Recycling Units . | . . . Scanalyzers . | . . . Garrison Access . | . . . Terminal Hacks 2 | . 2 . Terminal Index 1 | . 1 . Zone Layout 1 | . 1 . Fabricator Hacks . | . . . Repair Station Hacks . | . . . Recycling Unit Hacks . | . . . Scanalyzer . | . . . Garrison Access Hacks . | . . . Unauthorized Hacks . | . . . Terminals . | . . . Fabricators . | . . . Repair Stations . | . . . Recycling Units . | . . . Scanalyzers . | . . . Garrison Access . | . . . Data Cores Recovered . | . . . Used . | . . . Hacking Detections 2 | . 2 . Full Trace Events 1 | . 1 . Feedback Events . | . . . Feedback Blocked . | . . . Robot Schematics Acquired . | . . . Robots Built . | . . . Authchips . | . . . Time . | . . . Total Robot Build Rating . | . . . Part Schematics Acquired . | . . . Parts Built . | . . . Authchips . | . . . Time . | . . . Total Part Build Rating . | . . . Parts Repaired . | . . . Time . | . . . Parts Recycled . | . . . Recycled Matter . | . . . Retrieved Matter . | . . . Retrieved Components . | . . . Parts Scanalyzed . | . . . Part Schematics Acquired . | . . . Parts Damaged . | . . . Bothacking | -11 -10 -10 ------------ Run | Jun Mat Min Used RIF Installer . | . . . Robots Hacked . | . . . Non-combat . | . . . Combat . | . . . Robot Hacks Applied . | . . . Relay Couplers Released . | . . . Fabnet Peak Effective % . | . . . Robots Rewired . | . . . Allies Hacked . | . . . Hacks Repelled . | . . . Allies | -11 -10 -10 -------- Run | Jun Mat Min Total Allies . | . . . Largest Group . | . . . Highest-Rated Group . | . . . Highest-Rated Ally . | . . . Total Orders . | . . . Ally Attacks . | . . . Total Damage . | . . . Kills . | . . . Allies Corrupted . | . . . Allies Melted . | . . . Intel | -11 -10 -10 ------- Run | Jun Mat Min Robot Analysis Total . | . . . Derelict Logs Recovered . | . . . Drone Launches . | . . . Drone Recoveries . | . . . Exploration | -11 -10 -10 ------------- Run | Jun Mat Min Turns Passed 1908 | 65 1799 44 Spaces Moved 969 | 54 902 13 Core 20 | 20 . . Treads . | . . . Legs 506 | 34 472 . Wheels 443 | . 430 13 Hover . | . . . Flight . | . . . Fastest Speed 50 | 50 110 110 Average Speed 140 | 101 143 110 Slowest Speed 260 | 150 260 110 Overloaded Moves . | . . . Propulsion Burnouts . | . . . Robots Hopped . | . . . Cave-ins Triggered . | . . . Exploration Rate (%) 35 | 3 94 10 Regions Visited 2 Branch Regions 1 Pre-discovered Areas . | . . . Known Exits Taken . | . . . Unknown Exits Taken 2 | 1 1 . Scrap Searched . | . . . Spaces Dug . | . . . Terrain Destroyed . | . . . Melee . | . . . Projectile . | . . . AOE . | . . . Terrain Rammed . | . . . Walls Destroyed . | . . . Machines Disabled . | . . . Actions | -11 -10 -10 --------- Run | Jun Mat Min Total 1414 | 61 1324 29 Wait 332 | . 331 1 Move 967 | 53 901 13 Hop . | . . . Pick Up 20 | 2 18 . Fast Attach 12 | 6 6 . Attach 6 | . 1 5 Detach 3 | . 3 . Swap 2 | . 2 . Drop 10 | . 10 . Fire 56 | . 46 10 Melee . | . . . Ram 3 | . 3 . Kick 3 | . 3 . Crush . | . . . Escape Stasis . | . . . Rewire . | . . . Trap . | . . . Miscellaneous . | . . . Route ------- -11/Junkyard -10/Materials (discovered 4 exits: [*Mat x3] / [*Min]) -10/Mines History --------- Turn | Location | Event 9 | -11/Junkyard | Discovered new exit (range 15) 66 | -11/Junkyard | Entered Materials 304 | -10/Materials | Build established: Mutant 657 | -10/Materials | Discovered new exit (range 5) 1316 | -10/Materials | Discovered new exit (range 10) 1702 | -10/Materials | Discovered new exit (range 10) 1831 | -10/Materials | Discovered new exit (range 8) 1865 | -10/Materials | Entered Mines 1866 | -10/Mines | Assembled infested the area 1896 | -10/Mines | Core integrity fell below 50% 1908 | -10/Mines | Core integrity fell below 20% 1909 | -10/Mines | Destroyed by as-47321 with Assembled Rifle Last Messages --------------- 01889_ as-79569 destroyed. 01890_ as-61258 destroyed. 01890_ Wheel destroyed. 01892_ as-50108 destroyed. 01893_ Particle Cannon destroyed. 01894_ Aluminum Leg destroyed. 01895_ as-62687 knocked back. 01896_ Heat Sink destroyed. 01896_ Ion Engine destroyed. 01896_ as-47321 shuts down. 01899_ as-62687 knocked back. 01901_ Autogun destroyed. 01902_ as-30162 knocked back. 01902_ Aluminum Leg destroyed. 01904_ Lgt. Armor Plating destroyed. 01904_ as-62687 destroyed. 01906_ as-30162 destroyed. 01906_ Lgt. Cannon destroyed. 01907_ Acquired 9 matter. 01909_ as-47321 reactivates. Map ----- +----------------------------------------------------+ | ??????????????????????????????????????????? | | ??????????????????????????????????????????? | | ??????????????????????????????????????????? | | ??????????????????????????????????????????? | | ??????????????????????????????????????????? | | ??????????????????????????????????????????? | | ??????????????????????????????????????????? | | ??????????????????????????????????????????? | | ??????????????????????????????????????????? | | ??????????????????????????????????????????? | | ??????????????????????????????????????????? | | ??????????????????????????????????????????? | | ??????????????????????????????????????????? | | ?????????????####?????????????????????????? | | ?????????????# ##????????????????????????? | | ?????????????# ##???????????????????????? | | ????????????## ###?????????????????????? | | ???????????## ??????????????????????? | | ?????????### ???????????????????????? | | ????????## #???????????????????????? | | ????????# a##??????????????????????? | | ????????# a ##?????????????????????? | | ????????# aa a#?????????????????????? | | ????????# """ a% ##????????????????????? | | ????????# """ %a%a #????????????????????? | | ???#???## """ ##@a #????????????????????? | | ??## ## #######????????????????????? | | ??# ####??????????????????????????? | | ?# #?????????????????????????????? | | ?# ### #?????????????????????????????? | | ?# ????# #?????????????????????????????? | | ?##??????# ##????????????????????????????? | | ????????## ###??????????????????????????? | | ????????# %= #??????????????????????????? | | ????????# #??????????????????????????? | | ????????# #??????????????????????????? | | ????????# ######??????????????????????????? | | ??????? ????????????????????????????????? | | ?????? ## ????????????????????????????????? | | ????? ??#